fUSD/lending_fUSD_20250209
["ID","MTS","AMOUNT","RATE_DAILY","PERIOD"]
[352370964,1739065841999,-512.03057682,0.00010266,2]
[352370965,1739065842009,-848.63,0.00010266,2]
[352370966,1739065842019,-500.0,0.00010266,2]
[352370967,1739065842028,-529.5452259,0.00010266,2]
[352370968,1739065842038,-504.37835343,0.00010266,2]
[352370969,1739065842048,-500.0,0.00010266,2]
[352370970,1739065842057,-503.57,0.00010266,2]
[352370971,1739065842067,-500.0,0.00010266,2]
[352370972,1739065842076,-500.0,0.00010266,2]
[352370973,1739065842088,-500.0,0.00010266,2]
[352370974,1739065842097,-500.0,0.00010266,2]
[352370975,1739065842107,-500.0,0.00010266,2]
[352370976,1739065842116,-500.0,0.00010266,2]
[352370977,1739065842127,-500.0,0.00010266,2]
[352370978,1739065842136,-535.45,0.00010266,2]
[352370979,1739065842145,-692.86,0.00010266,2]
[352370980,1739065842155,-501.39482105,0.00010266,2]
[352370981,1739065842167,-199.4,0.00010266,2]
[352370982,1739065842177,-500.0,0.00010266,2]
[352370983,1739065842186,-500.0,0.00010266,2]
[352370984,1739065842196,-500.0,0.00010266,2]
[352370985,1739065842205,-685.54,0.00010266,2]
[352370986,1739065842217,-500.0,0.00010266,2]
[352370987,1739065842227,-500.0,0.00010266,2]
[352370988,1739065842238,-500.0,0.00010266,2]
[352370989,1739065842247,-500.0,0.00010266,2]
[352370990,1739065842257,-500.0,0.00010266,2]
[352370991,1739065842266,-500.0,0.00010266,2]
[352370992,1739065842276,-500.0,0.00010266,2]
[352370993,1739065842286,-500.0,0.00010266,2]
[352370994,1739065842295,-672.36,0.00010266,2]
[352370996,1739065842305,-500.0,0.00010266,2]
[352370998,1739065842315,-579.70542186,0.00010266,2]
[352371000,1739065842325,-500.0,0.00010266,2]
[352371002,1739065842334,-504.79350899,0.00010266,2]
[352371006,1739065842344,-503.60561037,0.00010266,2]
[352371009,1739065842353,-716.17,0.00010266,2]
[352371011,1739065842363,-500.0,0.00010266,2]
[352371013,1739065842372,-500.0,0.00010266,2]
[352371015,1739065842382,-542.07,0.00010266,2]
[352371017,1739065842391,-500.0,0.00010266,2]
[352371018,1739065842401,-500.0,0.00010266,2]
[352371019,1739065842411,-500.0,0.00010266,2]
[352371020,1739065842421,-507.54663205,0.00010266,2]
[352371021,1739065842430,-500.0,0.00010266,2]
[352371022,1739065842440,-500.0,0.00010266,2]
[352371023,1739065842450,-1000.37,0.00010266,2]
[352371024,1739065842459,-500.0,0.00010266,2]
[352371025,1739065842469,-500.0,0.00010266,2]
[352371026,1739065842479,-500.0,0.00010266,2]
[352371028,1739065842489,-508.10784011,0.00010266,2]
[352371030,1739065842499,-500.0,0.00010266,2]
[352371031,1739065842508,-500.0,0.00010266,2]
[352371032,1739065842518,-505.10140979,0.00010266,2]
[352371033,1739065842528,-600.57,0.00010266,2]
[352371034,1739065842537,-500.0,0.00010266,2]
[352371035,1739065842547,-276.20072251,0.00010266,2]
[352371036,1739065842557,-500.0,0.00010266,2]
[352371037,1739065842566,-500.0,0.00010266,2]
[352371038,1739065842576,-661.15,0.00010266,2]
[352371039,1739065842585,-500.0,0.00010266,2]
[352371040,1739065842595,-1452.54,0.00010266,2]
[352371041,1739065842605,-500.0,0.00010266,2]
[352371042,1739065842615,-500.0,0.00010266,2]
[352371043,1739065842624,-919.49,0.00010266,2]
[352371044,1739065842633,-1599.2,0.00010266,2]
[352371045,1739065842643,-500.0,0.00010266,2]
[352371046,1739065842652,-504.07761765,0.00010266,2]
[352371048,1739065842662,-500.0,0.00010266,2]
[352371050,1739065842671,-500.0,0.00010266,2]
[352371051,1739065842681,-500.0,0.00010266,2]
[352371052,1739065842690,-1019.85,0.00010266,2]
[352371053,1739065842700,-1931.5,0.00010266,2]
[352371054,1739065842709,-836.62,0.00010266,2]
[352371055,1739065842719,-500.0,0.00010266,2]
[352371056,1739065842729,-500.0,0.00010266,2]
[352371057,1739065842738,-500.0,0.00010266,2]
[352371058,1739065842748,-504.85284576,0.00010266,2]
[352371059,1739065842757,-500.0,0.00010266,2]
[352371060,1739065842767,-500.0,0.00010266,2]
[352371061,1739065842777,-1850.11,0.00010266,2]
[352371062,1739065842787,-500.0,0.00010266,2]
[352371063,1739065842796,-503.6086975,0.00010266,2]
[352371064,1739065842806,-830.1,0.00010266,2]
[352371065,1739065842815,-837.23,0.00010266,2]
[352371066,1739065842825,-1605.72,0.00010266,2]
[352371067,1739065842834,-477.82302628,0.00010266,2]
[352371068,1739065842843,-1476.07,0.00010266,2]
[352371069,1739065842853,-2142.18,0.00010266,2]
[352371070,1739065842863,-500.0,0.00010266,2]
[352371071,1739065842872,-500.0,0.00010266,2]
[352371072,1739065842881,-961.51,0.00010266,2]
[352371073,1739065842891,-500.0,0.00010266,2]
[352371074,1739065842901,-500.0,0.00010266,2]
[352371075,1739065842910,-500.0,0.00010266,2]
[352371076,1739065842920,-829.85,0.00010266,2]
[352371077,1739065842930,-1156.22,0.00010266,2]
[352371078,1739065842939,-629.87,0.00010266,2]
[352371079,1739065842949,-1910.75,0.00010266,2]
[352371080,1739065842958,-500.0,0.00010266,2]
[352371081,1739065842968,-500.0,0.00010266,2]
[352371082,1739065842978,-729.05,0.00010266,2]
[352371083,1739065842987,-504.00198696,0.00010266,2]
[352371084,1739065842996,-500.0,0.00010266,2]
[352371085,1739065843006,-1292.26,0.00010266,2]
[352371086,1739065843016,-500.0,0.00010266,2]
[352371087,1739065843025,-1023.31,0.00010266,2]
[352371088,1739065843035,-500.0,0.00010266,2]
[352371089,1739065843045,-500.0,0.00010266,2]
[352371090,1739065843055,-500.0,0.00010266,2]
[352371091,1739065843064,-500.0,0.00010266,2]
[352371092,1739065843073,-500.0,0.00010266,2]
[352371093,1739065843084,-1324.77,0.00010266,2]
[352371094,1739065843096,-1235.9,0.00010266,2]
[352371095,1739065843106,-500.0,0.00010266,2]
[352371096,1739065843116,-502.94417702,0.00010266,2]
[352371097,1739065843126,-574.84,0.00010266,2]
[352371098,1739065843136,-500.0,0.00010266,2]
[352371099,1739065843146,-500.0,0.00010266,2]
[352371100,1739065843155,-503.5273679,0.00010266,2]
[352371101,1739065843166,-678.2,0.00010266,2]
[352371102,1739065843175,-502.7491463,0.00010266,2]
[352371103,1739065843185,-1451.54,0.00010266,2]
[352371104,1739065843194,-851.41,0.00010266,2]
[352371105,1739065843204,-500.0,0.00010266,2]
[352371106,1739065843214,-500.0,0.00010266,2]
[352371107,1739065843223,-500.0,0.00010266,2]
[352371108,1739065843233,-500.0,0.00010266,2]
[352371109,1739065843242,-1660.93,0.00010266,2]
[352371110,1739065843252,-500.0,0.00010266,2]
[352371111,1739065843261,-2348.11,0.00010266,2]
[352371112,1739065843271,-500.0,0.00010266,2]
[352371113,1739065843280,-940.4,0.00010266,2]
[352371114,1739065843290,-3337.18,0.00010266,2]
[352371115,1739065843299,-500.0,0.00010266,2]
[352371116,1739065843308,-500.0,0.00010266,2]
[352371117,1739065843318,-2430.64,0.00010266,2]
[352371118,1739065843328,-500.0,0.00010266,2]
[352371119,1739065843338,-500.0,0.00010266,2]
[352371120,1739065843347,-500.0,0.00010266,2]
[352371121,1739065843358,-500.0,0.00010266,2]
[352371122,1739065843367,-1070.1,0.00010266,2]
[352371123,1739065843376,-2276.95,0.00010266,2]
[352371124,1739065843386,-672.03,0.00010266,2]
[352371125,1739065843395,-500.0,0.00010266,2]
[352371126,1739065843405,-500.0,0.00010266,2]
[352371127,1739065843415,-1406.86,0.00010266,2]
[352371128,1739065843425,-500.0,0.00010266,2]
[352371129,1739065843435,-960.92,0.00010266,2]
[352371130,1739065843444,-505.98859209,0.00010266,2]
[352371131,1739065843454,-500.0,0.00010266,2]
[352371132,1739065843464,-500.0,0.00010266,2]
[352371133,1739065843474,-1197.83,0.00010266,2]
[352371134,1739065843484,-500.0,0.00010266,2]
[352371135,1739065843494,-908.43,0.00010266,2]
[352371136,1739065843503,-1585.45,0.00010266,2]
[352371137,1739065843513,-585.76240451,0.00010266,2]
[352371138,1739065843523,-500.0,0.00010266,2]
[352371139,1739065843533,-669.33,0.00010266,2]
[352371140,1739065843542,-504.04,0.00010266,2]
[352371141,1739065843552,-500.0,0.00010266,2]
[352371142,1739065843562,-1615.81,0.00010266,2]
[352371143,1739065843571,-500.0,0.00010266,2]
[352371144,1739065843580,-500.0,0.00010266,2]
[352371145,1739065843590,-500.0,0.00010266,2]
[352371146,1739065843600,-500.0,0.00010266,2]
[352371147,1739065843609,-1554.99,0.00010266,2]
[352371148,1739065843618,-500.0,0.00010266,2]
[352371149,1739065843628,-904.99,0.00010266,2]
[352371150,1739065843637,-1316.45,0.00010266,2]
[352371151,1739065843647,-500.0,0.00010266,2]
[352371152,1739065843657,-500.0,0.00010266,2]
[352371153,1739065843667,-500.0,0.00010266,2]
[352371154,1739065843678,-773.68,0.00010266,2]
[352371155,1739065843687,-1321.5,0.00010266,2]
[352371156,1739065843697,-563.42,0.00010266,2]
[352371157,1739065843707,-500.0,0.00010266,2]
[352371158,1739065843719,-1652.3,0.00010266,2]
[352371159,1739065843729,-1176.32,0.00010266,2]
[352371160,1739065843739,-502.31893657,0.00010266,2]
[352371161,1739065843749,-500.0,0.00010266,2]
[352371162,1739065843759,-500.0,0.00010266,2]
[352371163,1739065843769,-500.0,0.00010266,2]
[352371164,1739065843779,-2093.5,0.00010266,2]
[352371165,1739065843788,-503.85958616,0.00010266,2]
[352371166,1739065843798,-2834.78,0.00010266,2]
[352371167,1739065843807,-500.0,0.00010266,2]
[352371168,1739065843817,-500.0,0.00010266,2]
[352371169,1739065843827,-1276.77,0.00010266,2]
[352371170,1739065843836,-503.2933362,0.00010266,2]
[352371171,1739065843845,-500.0,0.00010266,2]
[352371172,1739065843855,-1561.18,0.00010266,2]
[352371173,1739065843865,-1124.08,0.00010266,2]
[352371174,1739065843875,-605.41,0.00010266,2]
[352371175,1739065843884,-500.0,0.00010266,2]
[352371176,1739065843894,-1196.21,0.00010266,2]
[352371177,1739065843904,-500.0,0.00010266,2]
[352371178,1739065843914,-500.0,0.00010266,2]
[352371179,1739065843924,-695.25,0.00010266,2]
[352371180,1739065843933,-518.29,0.00010266,2]
[352371181,1739065843943,-500.0,0.00010266,2]
[352371182,1739065843953,-500.0,0.00010266,2]
[352371183,1739065843963,-500.0,0.00010266,2]
[352371184,1739065843974,-1471.32,0.00010266,2]
[352371185,1739065844167,-1636.79,0.00010266,2]
[352371186,1739065844177,-500.0,0.00010266,2]
[352371187,1739065844186,-500.0,0.00010266,2]
[352371188,1739065844195,-500.0,0.00010266,2]
[352371189,1739065844204,-1949.4,0.00010266,2]
[352371190,1739065844214,-500.0,0.00010266,2]
[352371191,1739065844223,-627.54,0.00010266,2]
[352371192,1739065844233,-1887.98,0.00010266,2]
[352371193,1739065844242,-1518.61,0.00010266,2]
[352371194,1739065844251,-500.0,0.00010266,2]
[352371195,1739065844260,-816.06,0.00010266,2]
[352371196,1739065844270,-500.0,0.00010266,2]
[352371197,1739065844280,-500.0,0.00010266,2]
[352371198,1739065844289,-500.0,0.00010266,2]
[352371199,1739065844299,-500.0,0.00010266,2]
[352371200,1739065844308,-513.29019085,0.00010266,2]
[352371201,1739065844318,-700.89,0.00010266,2]
[352371202,1739065844327,-500.0,0.00010266,2]
[352371203,1739065844337,-2133.9,0.00010266,2]
[352371204,1739065844346,-565.73,0.00010266,2]
[352371205,1739065844355,-500.0,0.00010266,2]
[352371206,1739065844364,-396.16331773,0.00010266,2]
[352371207,1739065844374,-500.0,0.00010266,2]
[352371208,1739065844383,-500.0,0.00010266,2]
[352371209,1739065844392,-500.0,0.00010266,2]
[352371210,1739065844401,-500.0,0.00010266,2]
[352371211,1739065844410,-500.0,0.00010266,2]
[352371212,1739065844419,-2090.87,0.00010266,2]
[352371213,1739065844428,-1114.73,0.00010266,2]
[352371214,1739065844438,-2216.88,0.00010266,2]
[352371215,1739065844447,-500.0,0.00010266,2]
[352371216,1739065844457,-500.0,0.00010266,2]
[352371217,1739065844467,-500.0,0.00010266,2]
[352371218,1739065844477,-505.36027085,0.00010266,2]
[352371219,1739065844487,-500.0,0.00010266,2]
[352371220,1739065844497,-1425.9,0.00010266,2]
[352371221,1739065844506,-504.92303587,0.00010266,2]
[352371222,1739065844516,-500.0,0.00010266,2]
[352371223,1739065844525,-500.0,0.00010266,2]
[352371224,1739065844535,-4849.59,0.00010266,2]
[352371225,1739065844544,-2088.29,0.00010266,2]
[352371226,1739065844555,-864.75,0.00010266,2]
[352371227,1739065844564,-207.49693142,0.00010266,2]
[352371228,1739065844962,-500.0,0.00010129,2]
[352371229,1739065844975,-292.50306858,0.00010266,2]
[352371230,1739065844984,-500.0,0.00010266,2]
[352371231,1739065844994,-631.13,0.00010266,2]
[352371232,1739065845004,-500.0,0.00010266,2]
[352371233,1739065845013,-500.0,0.00010266,2]
[352371234,1739065845024,-3006.06,0.00010266,2]
[352371235,1739065845034,-500.0,0.00010266,2]
[352371236,1739065845043,-502.75608792,0.00010266,2]
[352371237,1739065845053,-1354.44,0.00010266,2]
[352371238,1739065845063,-500.0,0.00010266,2]
[352371239,1739065845072,-500.0,0.00010267,2]
[352371240,1739065845082,-510.64402945,0.00010267,2]
[352371241,1739065845095,-500.0,0.00010267,2]
[352371242,1739065845105,-508.37239987,0.00010267,2]
[352371243,1739065845117,-511.70517253,0.00010267,2]
[352371244,1739065845127,-164.88843041,0.00010267,2]
[352371245,1739065845136,-514.17899712,0.00010267,2]
[352371246,1739065845145,-500.0,0.00010267,2]
[352371247,1739065845155,-500.0,0.00010267,2]
[352371248,1739065845165,-506.4562248,0.00010267,2]
[352371249,1739065845175,-547.24566275,0.00010267,2]
[352371250,1739065845185,-500.0,0.00010267,2]
[352371251,1739065845194,-508.86943287,0.00010267,2]
[352371252,1739065845204,-500.0,0.00010267,2]
[352371253,1739065845216,-500.0,0.00010267,2]
[352371254,1739065845226,-509.04778247,0.00010267,2]
[352371255,1739065845236,-507.07848934,0.00010267,2]
[352371256,1739065845245,-500.0,0.00010267,2]
[352371257,1739065845256,-512.34303226,0.00010267,2]
[352371258,1739065845266,-500.0,0.00010267,2]
[352371259,1739065845275,-323.64456406,0.00010267,2]
[352371260,1739065845285,-500.0,0.00010267,2]
[352371261,1739065845294,-500.0,0.00010267,2]
[352371262,1739065845304,-500.0,0.00010267,2]
[352371263,1739065845314,-500.0,0.00010267,2]
[352371264,1739065845324,-500.0,0.00010267,2]
[352371266,1739065845334,-500.0,0.00010267,2]
[352371268,1739065845343,-500.0,0.00010267,2]
[352371269,1739065845353,-500.0,0.00010267,2]
[352371270,1739065845362,-500.0,0.00010267,2]
[352371271,1739065845371,-500.0,0.00010267,2]
[352371272,1739065845381,-500.0,0.00010267,2]
[352371273,1739065845390,-512.05395285,0.00010267,2]
[352371274,1739065845400,-500.0,0.00010267,2]
[352371275,1739065845409,-510.25020156,0.00010267,2]
[352371276,1739065845419,-507.72074706,0.00010267,2]
[352371277,1739065845428,-506.4412302,0.00010267,2]
[352371278,1739065845438,-500.0,0.00010267,2]
[352371279,1739065845447,-500.0,0.00010267,2]
[352371280,1739065845457,-505.06663503,0.00010267,2]
[352371281,1739065845468,-500.0,0.00010267,2]
[352371282,1739065845478,-500.0,0.00010267,2]
[352371283,1739065845487,-500.0,0.00010267,2]
[352371284,1739065845498,-500.0,0.00010267,2]
[352371285,1739065845508,-500.0,0.00010267,2]
[352371286,1739065845517,-507.16323799,0.00010267,2]
[352371287,1739065845527,-500.0,0.00010267,2]
[352371290,1739065845538,-506.46002345,0.00010267,2]
[352371292,1739065845547,-500.0,0.00010267,2]
[352371293,1739065845557,-500.0,0.00010267,2]
[352371294,1739065845566,-612.51203583,0.00010267,2]
[352371295,1739065845576,-500.0,0.00010267,2]
[352371296,1739065845585,-500.0,0.00010267,2]
[352371297,1739065845595,-500.0,0.00010267,2]
[352371298,1739065845604,-500.0,0.00010267,2]
[352371301,1739065845614,-500.0,0.00010267,2]
[352371302,1739065845624,-504.17721372,0.00010267,2]
[352371303,1739065845634,-500.0,0.00010267,2]
[352371304,1739065845643,-500.0,0.00010267,2]
[352371305,1739065845653,-500.0,0.00010267,2]
[352371306,1739065845663,-292.3046476,0.00010267,2]
[352371307,1739065845672,-500.0,0.00010267,2]
[352371308,1739065845682,-508.3996514,0.00010267,2]
[352371309,1739065845692,-500.0,0.00010267,2]
[352371310,1739065845701,-500.0,0.00010267,2]
[352371311,1739065845711,-506.13,0.00010267,2]
[352371312,1739065845722,-500.0,0.00010267,2]
[352371313,1739065845732,-500.0,0.00010267,2]
[352371314,1739065845742,-500.0,0.00010267,2]
[352371315,1739065845751,-500.0,0.00010267,2]
[352371316,1739065845761,-500.0,0.00010267,2]
[352371317,1739065845770,-500.0,0.00010267,2]
[352371318,1739065845780,-512.39069366,0.00010267,2]
[352371319,1739065845790,-500.0,0.00010267,2]
[352371320,1739065845801,-506.09668169,0.00010267,2]
[352371321,1739065845811,-500.0,0.00010267,2]
[352371322,1739065845821,-500.0,0.00010267,2]
[352371323,1739065845833,-500.0,0.00010267,2]
[352371324,1739065845842,-500.0,0.00010267,2]
[352371325,1739065845853,-500.0,0.00010267,2]
[352371326,1739065845863,-512.5735704,0.00010267,2]
[352371327,1739065845873,-500.0,0.00010267,2]
[352371328,1739065845882,-500.0,0.00010267,2]
[352371329,1739065845892,-501.85917189,0.00010267,2]
[352371330,1739065845901,-500.0,0.00010267,2]
[352371331,1739065845911,-500.0,0.00010267,2]
[352371332,1739065845921,-504.17684759,0.00010267,2]
[352371333,1739065845931,-500.0,0.00010267,2]
[352371334,1739065845940,-500.0,0.00010267,2]
[352371335,1739065845950,-517.37802228,0.00010267,2]
[352371336,1739065845960,-500.0,0.00010267,2]
[352371337,1739065845969,-511.62073475,0.00010267,2]
[352371338,1739065845979,-500.0,0.00010267,2]
[352371339,1739065845989,-500.0,0.00010267,2]
[352371340,1739065845998,-500.0,0.00010267,2]
[352371341,1739065846008,-500.0,0.00010267,2]
[352371342,1739065846017,-500.0,0.00010267,2]
[352371343,1739065846027,-505.21058196,0.00010267,2]
[352371344,1739065846036,-500.0,0.00010267,2]
[352371345,1739065846046,-500.0,0.00010267,2]
[352371346,1739065846055,-500.0,0.00010267,2]
[352371347,1739065846065,-504.33995376,0.00010267,2]
[352371349,1739065846075,-500.0,0.00010267,2]
[352371351,1739065846084,-500.0,0.00010267,2]
[352371353,1739065846097,-500.0,0.00010267,2]
[352371354,1739065846106,-500.0,0.00010267,2]
[352371355,1739065846116,-500.0,0.00010267,2]
[352371356,1739065846127,-500.0,0.00010267,2]
[352371357,1739065846136,-500.0,0.00010267,2]
[352371358,1739065846145,-500.0,0.00010267,2]
[352371359,1739065846154,-500.0,0.00010267,2]
[352371360,1739065846165,-500.0,0.00010267,2]
[352371361,1739065846175,-500.0,0.00010267,2]
[352371362,1739065846184,-500.0,0.00010267,2]
[352371363,1739065846194,-500.0,0.00010267,2]
[352371364,1739065846204,-500.0,0.00010267,2]
[352371365,1739065846214,-500.0,0.00010267,2]
[352371366,1739065846225,-500.0,0.00010267,2]
[352371367,1739065846235,-500.0,0.00010267,2]
[352371368,1739065846244,-500.0,0.00010267,2]
[352371369,1739065846254,-500.0,0.00010267,2]
[352371370,1739065846265,-500.0,0.00010267,2]
[352371371,1739065846274,-500.0,0.00010267,2]
[352371372,1739065846284,-500.0,0.00010267,2]
[352371373,1739065846293,-505.33211456,0.00010267,2]
[352371374,1739065846303,-500.0,0.00010267,2]
[352371375,1739065846314,-500.0,0.00010267,2]
[352371376,1739065846323,-500.0,0.00010267,2]
[352371377,1739065846333,-510.00711912,0.00010267,2]
[352371378,1739065846342,-505.77326014,0.00010267,2]
[352371379,1739065846409,-500.0,0.00010267,2]
[352371380,1739065846418,-500.0,0.00010267,2]
[352371381,1739065846428,-500.0,0.00010267,2]
[352371382,1739065846437,-500.0,0.00010267,2]
[352371383,1739065846446,-500.0,0.00010267,2]
[352371384,1739065846456,-503.58656896,0.00010267,2]
[352371385,1739065846465,-500.0,0.00010267,2]
[352371386,1739065846475,-500.0,0.00010267,2]
[352371387,1739065846484,-500.0,0.00010267,2]
[352371388,1739065846494,-502.8988218,0.00010267,2]
[352371389,1739065846503,-500.0,0.00010267,2]
[352371390,1739065846512,-500.0,0.00010267,2]
[352371391,1739065846521,-503.31700654,0.00010267,2]
[352371392,1739065846530,-500.0,0.00010267,2]
[352371393,1739065846539,-505.07822018,0.00010267,2]
[352371394,1739065846549,-500.0,0.00010267,2]
[352371395,1739065846559,-500.0,0.00010267,2]
[352371396,1739065846568,-492.2689063,0.00010267,2]
[352371397,1739065846578,-500.0,0.00010267,2]
[352371398,1739065846588,-500.0,0.00010267,2]
[352371399,1739065846597,-500.0,0.00010267,2]
[352371400,1739065846607,-500.0,0.00010267,2]
[352371401,1739065846616,-500.0,0.00010267,2]
[352371402,1739065846625,-504.56630015,0.00010267,2]
[352371403,1739065846635,-500.0,0.00010267,2]
[352371404,1739065846645,-500.0,0.00010267,2]
[352371405,1739065846655,-399.05515597,0.00010267,2]
[352371406,1739065846665,-504.74294099,0.00010267,2]
[352371407,1739065846674,-504.37709718,0.00010267,2]
[352371408,1739065846685,-500.0,0.00010267,2]
[352371409,1739065846695,-500.0,0.00010267,2]
[352371410,1739065846704,-500.0,0.00010267,2]
[352371411,1739065846714,-500.0,0.00010267,2]
[352371412,1739065846723,-505.98805243,0.00010267,2]
[352371413,1739065846733,-500.0,0.00010267,2]
[352371414,1739065846742,-500.0,0.00010267,2]
[352371415,1739065846751,-531.15560905,0.00010267,2]
[352371416,1739065846760,-500.0,0.00010267,2]
[352371417,1739065846769,-509.24580324,0.00010267,2]
[352371418,1739065846778,-507.3626293,0.00010267,2]
[352371419,1739065846788,-508.52140238,0.00010267,2]
[352371420,1739065846797,-500.0,0.00010267,2]
[352371421,1739065846807,-500.0,0.00010267,2]
[352371422,1739065846817,-500.0,0.00010267,2]
[352371423,1739065846826,-500.0,0.00010267,2]
[352371424,1739065846835,-500.0,0.00010267,2]
[352371425,1739065846845,-500.0,0.00010267,2]
[352371426,1739065846854,-500.0,0.00010267,2]
[352371427,1739065846863,-374.06363535,0.00010267,2]
[352371428,1739065846872,-504.44542287,0.00010267,2]
[352371429,1739065846882,-500.0,0.00010267,2]
[352371430,1739065846892,-500.0,0.00010267,2]
[352371431,1739065846901,-507.45589877,0.00010267,2]
[352371432,1739065846910,-505.69448013,0.00010267,2]
[352371433,1739065846920,-500.0,0.00010267,2]
[352371434,1739065846930,-503.01440072,0.00010267,2]
[352371435,1739065846940,-500.0,0.00010267,2]
[352371436,1739065846949,-500.0,0.00010267,2]
[352371437,1739065846959,-500.0,0.00010267,2]
[352371438,1739065846969,-500.0,0.00010267,2]
[352371439,1739065846979,-503.88272519,0.00010267,2]
[352371440,1739065846988,-500.0,0.00010267,2]
[352371441,1739065846998,-500.0,0.00010267,2]
[352371442,1739065847007,-500.0,0.00010267,2]
[352371443,1739065847016,-500.0,0.00010267,2]
[352371444,1739065847026,-503.58780732,0.00010267,2]
[352371445,1739065847035,-509.77181677,0.00010267,2]
[352371446,1739065847045,-504.85325432,0.00010267,2]
[352371447,1739065847054,-500.0,0.00010267,2]
[352371448,1739065847063,-500.0,0.00010267,2]
[352371449,1739065847072,-500.0,0.00010267,2]
[352371450,1739065847082,-500.0,0.00010267,2]
[352371451,1739065847095,-500.0,0.00010267,2]
[352371452,1739065847105,-500.0,0.00010267,2]
[352371453,1739065847114,-500.0,0.00010267,2]
[352371454,1739065847123,-502.28347454,0.00010267,2]
[352371455,1739065847133,-500.0,0.00010267,2]
[352371456,1739065847143,-500.0,0.00010267,2]
[352371457,1739065847152,-500.0,0.00010267,2]
[352371458,1739065847164,-500.0,0.00010267,2]
[352371459,1739065847174,-506.39277366,0.00010267,2]
[352371460,1739065847183,-500.0,0.00010267,2]
[352371461,1739065847193,-500.0,0.00010267,2]
[352371462,1739065847203,-500.0,0.00010267,2]
[352371463,1739065847212,-500.0,0.00010267,2]
[352371464,1739065847223,-500.0,0.00010267,2]
[352371465,1739065847232,-500.0,0.00010267,2]
[352371466,1739065847241,-500.0,0.00010267,2]
[352371467,1739065847250,-500.0,0.00010267,2]
[352371468,1739065847260,-500.0,0.00010267,2]
[352371469,1739065847270,-500.0,0.00010267,2]
[352371470,1739065847279,-500.0,0.00010267,2]
[352371471,1739065847288,-500.0,0.00010267,2]
[352371472,1739065847297,-500.0,0.00010267,2]
[352371473,1739065847306,-500.0,0.00010267,2]
[352371474,1739065847315,-501.89468334,0.00010267,2]
[352371475,1739065847324,-502.14893456,0.00010267,2]
[352371476,1739065847334,-505.10729091,0.00010267,2]
[352371477,1739065847343,-500.0,0.00010267,2]
[352371478,1739065847352,-500.0,0.00010267,2]
[352371479,1739065847362,-500.0,0.00010267,2]
[352371480,1739065847372,-500.0,0.00010267,2]
[352371481,1739065847381,-500.0,0.00010267,2]
[352371482,1739065847391,-500.0,0.00010267,2]
[352371483,1739065847401,-500.65186884,0.00010267,2]
[352371484,1739065847410,-500.0,0.00010267,2]
[352371485,1739065847420,-500.0,0.00010267,2]
[352371486,1739065847429,-500.0,0.00010267,2]
[352371487,1739065847439,-576.81077972,0.00010267,2]
[352371488,1739065847449,-500.0,0.00010267,2]
[352371489,1739065847458,-500.0,0.00010267,2]
[352371490,1739065847468,-500.0,0.00010267,2]